Cogmind - Beta 9.6 @@@ ROGUE MODE // 2020.07.30 @ 12:38:02 Player: Lyft Result: Destroyed by as-06061 with Assembled Heavy Rifle Performance ------------- Evolutions (0) 0 Regions Visited (3) 600 Robots Destroyed (8) 40 Value Destroyed (90) 90 Prototype IDs (22) 440 Alien Tech Used (0) 0 Bonus (-159) -159 TOTAL SCORE: 1011 Bonus ------- Aligned with FarCom 300 Friendly Fire -459 Cogmind --------- Core Integrity 0/250 Matter 220/300 Energy 80/100 System Corruption 1% Temperature Cool (49) Movement Treading (180) Ox1 Location -10/Exiles Parts ------- > --- POWER (1) -------- (None) > --- PROPULSION (2) --- Light Treads > --- UTILITY (2) ------ Large Storage Unit > --- WEAPON (2) ------- AWS/Gauss > --- INVENTORY (10) --- Small Storage Unit High-capacity Battery (400) High-capacity Matter Pod (190) Experimental Sensor Array Longsword +1 Peak State ------------ > --- POWER ------------ Ion Engine > --- PROPULSION ------- Light Treads Wheel > --- UTILITY ---------- Small Storage Unit Large Storage Unit > --- WEAPON ----------- AWS/Gauss > --- INVENTORY -------- Light Treads Light Treads Small Storage Unit High-capacity Battery High-capacity Matter Pod Experimental Sensor Array Light Armor Plating Heavy EM Pulse Gun Heavy EM Pulse Gun Longsword +1 [Rating: 23] Favorites ----------- Power Ion Engine Engine Ion Engine Propulsion Light Treads Treads Light Treads Leg Aluminum Leg Wheel Wheel Utility Small Storage Unit Storage Small Storage Unit Protection Light Armor Plating Weapon Assault Rifle Energy Gun Heavy EM Pulse Gun Ballistic Gun Assault Rifle Slashing Weapon Longsword +1 Build | -11 -10 -10 -10 ------- Run | Scr Mat Min Exi Slots Evolved . | . . . . Power . | . . . . Propulsion . | . . . . Utility . | . . . . Weapon . | . . . . Parts Attached 17 | 3 . 2 12 Power . | . . . . Engine . | . . . . Core . | . . . . Reactor . | . . . . Propulsion 4 | 2 . . 2 Treads 3 | 1 . . 2 Leg . | . . . . Wheel 1 | 1 . . . Hover . | . . . . Flight . | . . . . Utility 3 | 1 . . 2 Device . | . . . . Storage 2 | 1 . . 1 Processor . | . . . . Hackware . | . . . . Protection 1 | . . . 1 Artifact . | . . . . Weapon 10 | . . 2 8 Energy Gun 7 | . . 2 5 Energy Cannon . | . . . . Ballistic Gun 2 | . . . 2 Ballistic Cannon . | . . . . Launcher . | . . . . Special Weapon . | . . . . Impact Weapon . | . . . . Slashing Weapon 1 | . . . 1 Piercing Weapon . | . . . . Special Melee Weapon . | . . . . Unidentified Prototypes . | . . . . Parts Lost 6 | . . . 6 Power 1 | . . . 1 Propulsion 1 | . . . 1 Utility 1 | . . . 1 Weapon 3 | . . . 3 Highest Loss Streak 6 | . . . 6 Average Slot Usage (%) 98 | . 100 100 97 Engine 13 | . 14 14 13 Treads 14 | . 14 14 15 Wheel 13 | . 14 14 12 Storage 27 | . 28 28 26 Energy Gun 14 | . . 2 25 Ballistic Gun 12 | . 28 25 . Naked Turns . | . . . . Heaviest Build 31 | 17 17 19 31 Greatest Support 40 | 10 10 10 40 Greatest Overweight (x) 3 | 1 1 1 3 Average Overweight (x) 1 | 1 1 1 2 Largest Inventory Capacity 12 | 8 8 8 12 Average Capacity 9 | 6 8 8 10 Most Carried 12 | 6 8 8 12 Average Carried 8 | 4 7 7 9 Final Capacity 10 | 8 8 8 10 Final Carried 8 | 4 8 7 5 Class Distribution -------------------- 100% | Mutant Dominant Class ---------------- Mutant | -10/Materials Mutant | -10/Mines Mutant | -10/Exiles Resources | -11 -10 -10 -10 ----------- Run | Scr Mat Min Exi Matter Collected 374 | 260 72 32 10 Remotely . | . . . . Salvage Created 273 | 82 92 34 65 Parts 23 | 2 1 8 12 Haulers Intercepted . | . . . . Recyclers Shooed . | . . . . Parts Field Recycled . | . . . . Retrieved Matter . | . . . . Parts Self-Destructed . | . . . . Prevented . | . . . . Kills | -11 -10 -10 -10 ------- Run | Scr Mat Min Exi Combat Hostiles Destroyed 5 | . 2 1 2 Guns 5 | . 2 1 2 Classes Destroyed 5 | 1 1 2 1 Builder 1 | . . 1 . Recycler 1 | 1 . . . Swarmer 1 | . . 1 . Grunt 2 | . 2 . . Assembled 2 | . . . 2 Best Kill Streak 3 | 1 2 2 3 Combat Bots Only 2 | . 2 1 2 Max Kills in Single Turn 1 | 1 1 1 1 Gunslinging . | . . . . Exploded . | . . . . Melee . | . . . . Uniques/NPCs Destroyed 1 | . . . 1 EX-HEX (-10/Exiles) Combat | -11 -10 -10 -10 -------- Run | Scr Mat Min Exi Damage Taken 946 | . 99 . 847 Core 253 | . 33 . 220 Absorbed by Shields . | . . . . Core Remaining (%) 100 | 100 . . . Volleys Fired 24 | 5 12 2 5 Largest 2 | 2 2 2 2 Hottest 90 | 40 40 40 90 Shots Fired 46 | 10 24 4 8 Gun 46 | 10 24 4 8 Cannon . | . . . . Launcher . | . . . . Special . | . . . . Kinetic 38 | 10 24 4 . Thermal . | . . . . Explosive . | . . . . Electromagnetic 8 | . . . 8 Robot Hit Streak 14 | 8 14 3 6 Robot Miss Streak 2 | 1 2 . 1 Penetration Max . | . . . . Secondary Targets 2 | . 1 . 1 Max Gunslinging Chain 1 | . 1 . 1 Shots Hit Robots 38 | 8 18 3 9 Core Hits 13 | 2 4 2 5 Critical Hits . | . . . . Critical Kills . | . . . . Critical Parts Destroyed . | . . . . Melee Attacks 2 | . . . 2 Impact . | . . . . Slashing 2 | . . . 2 Piercing . | . . . . Sneak Attacks 2 | . . . 2 Combat Hostiles . | . . . . Follow-up Attacks . | . . . . Damage Inflicted 757 | 88 208 39 422 Guns 439 | 88 208 39 104 Cannons . | . . . . Explosions . | . . . . Melee 318 | . . . 318 Ramming . | . . . . Kinetic 335 | 88 208 39 . Thermal . | . . . . Explosive . | . . . . Electromagnetic 104 | . . . 104 Impact . | . . . . Slashing 318 | . . . 318 Piercing . | . . . . Highest Corruption 1 | . 1 1 1 Average Corruption 1 | . 1 1 1 Corruption Purged . | . . . . Effects 3 | . . 2 1 Energy Discharges 3 | . . 2 1 Overload Shots . | . . . . Overflow Damage 123 | . . . 123 Projectiles . | . . . . Explosions . | . . . . Melee 123 | . . . 123 Knockbacks . | . . . . Impact . | . . . . Kinetic . | . . . . Secondary . | . . . . Self-Inflicted Damage . | . . . . Shots . | . . . . Rammed . | . . . . Targets Rammed . | . . . . Kicked . | . . . . Crushed . | . . . . Highest Temperature 98 | . 5 . 98 Average Temperature 58 | . 5 . 64 Received Heat Transfer 74 | . 54 . 20 Siege Activations . | . . . . Robots Corrupted . | . . . . Combat Hostiles . | . . . . Parts Fried . | . . . . Impact Corruptions . | . . . . Robots Melted . | . . . . Combat Hostiles . | . . . . Parts Melted . | . . . . Heat Transferred . | . . . . Parts Sabotaged . | . . . . Parts Stolen . | . . . . Parts Stripped . | . . . . Power Chain Reactions . | . . . . Missiles Intercepted . | . . . . Alert | -11 -10 -10 -10 ------- Run | Scr Mat Min Exi Peak Influence 81 | 5 81 58 . Average Influence 42 | 2 47 46 . Maximum Alert Level . | . . . . Low Security (%) 100 | 100 100 100 . Level 1 . | . . . . Level 2 . | . . . . Level 3 . | . . . . Level 4 . | . . . . Level 5 . | . . . . High Security . | . . . . Max Security . | . . . . Squads Dispatched 2 | . 2 . . Investigation . | . . . . Extermination . | . . . . Reinforcement 2 | . 2 . . Assault . | . . . . Garrison . | . . . . Intercept . | . . . . Construction Impeded . | . . . . Haulers Reinforced . | . . . . Stealth | -11 -10 -10 -10 --------- Run | Scr Mat Min Exi Distress Signals . | . . . . Communications Jammed . | . . . . Distress Signals . | . . . . Times Spotted 11 | . 3 . 8 Peak Tracking Total 9 | . 3 . 9 Tactical Retreats . | . . . . Traps | -11 -10 -10 -10 ------- Run | Scr Mat Min Exi Traps Triggered 1 | . 1 . . Indirectly . | . . . . Trap Hack Attempts . | . . . . Triggered . | . . . . Disarmed . | . . . . Reprogrammed . | . . . . Reused . | . . . . Traps Extracted . | . . . . Installed . | . . . . Triggered . | . . . . Machines | -11 -10 -10 -10 ---------- Run | Scr Mat Min Exi Machines Disabled . | . . . . Max in Single Turn . | . . . . Machines Sabotaged . | . . . . Garrisons Compromised . | . . . . Overloaded Fab Kills . | . . . . Fab Network Shutdowns . | . . . . Hacking | -11 -10 -10 -10 --------- Run | Scr Mat Min Exi Machines Accessed 3 | . 1 . 2 Terminals 1 | . 1 . . Fabricators . | . . . . Repair Stations . | . . . . Recycling Units . | . . . . Scanalyzers . | . . . . Garrison Access . | . . . . Total Hacks 5 | . 3 . 2 Successful 4 | . 2 . 2 Failed 1 | . 1 . . Catastrophic . | . . . . Database Lockouts . | . . . . Manual 4 | . 3 . 1 Terminals 3 | . 3 . . Fabricators . | . . . . Repair Stations . | . . . . Recycling Units . | . . . . Scanalyzers . | . . . . Garrison Access . | . . . . Terminal Hacks 2 | . . . 2 Record 1 | . . . 1 EX-Prototype ID Bank 1 | . . . 1 Fabricator Hacks . | . . . . Repair Station Hacks . | . . . . Recycling Unit Hacks . | . . . . Scanalyzer . | . . . . Garrison Access Hacks . | . . . . Unauthorized Hacks 2 | . 2 . . Terminals 2 | . 2 . . Track 1 | . 1 . . Botnet 1 | . 1 . . Fabricators . | . . . . Repair Stations . | . . . . Recycling Units . | . . . . Scanalyzers . | . . . . Garrison Access . | . . . . Data Cores Recovered . | . . . . Used . | . . . . Hacking Detections 1 | . 1 . . Full Trace Events . | . . . . Feedback Events . | . . . . Feedback Blocked . | . . . . Robot Schematics Acquired . | . . . . Robots Built . | . . . . Matter . | . . . . Time . | . . . . Total Robot Build Rating . | . . . . Part Schematics Acquired . | . . . . Parts Built . | . . . . Matter . | . . . . Time . | . . . . Total Part Build Rating . | . . . . Parts Repaired . | . . . . Time . | . . . . Parts Recycled . | . . . . Recycled Matter . | . . . . Retrieved Matter . | . . . . Retrieved Components . | . . . . Parts Scanalyzed . | . . . . Part Schematics Acquired . | . . . . Parts Damaged . | . . . . Bothacking | -11 -10 -10 -10 ------------ Run | Scr Mat Min Exi Used RIF Installer . | . . . . Robots Hacked . | . . . . Non-combat . | . . . . Combat . | . . . . Robot Hacks Applied . | . . . . Relay Couplers Released . | . . . . Robots Rewired . | . . . . Allies Hacked . | . . . . Hacks Repelled . | . . . . Allies | -11 -10 -10 -10 -------- Run | Scr Mat Min Exi Total Allies 2 | . . 2 . Largest Group 2 | . . 2 2 Highest-Rated Group 47 | . . 47 47 Highest-Rated Ally 31 | . . 31 31 Total Orders . | . . . . Ally Attacks . | . . . . Total Damage . | . . . . Kills . | . . . . Allies Corrupted . | . . . . Allies Melted . | . . . . Intel | -11 -10 -10 -10 ------- Run | Scr Mat Min Exi Robot Analysis Total . | . . . . Derelict Logs Recovered 1 | . . 1 . Drone Launches . | . . . . Drone Recoveries . | . . . . Exploration | -11 -10 -10 -10 ------------- Run | Scr Mat Min Exi Turns Passed 839 | 39 192 204 404 Spaces Moved 732 | 22 164 199 347 Core . | . . . . Treads 5 | . . . 5 Legs . | . . . . Wheels 727 | 22 164 199 342 Hover . | . . . . Flight . | . . . . Fastest Speed 90 | 90 90 90 90 Average Speed 97 | 90 90 90 105 Slowest Speed 180 | 90 90 90 180 Overloaded Moves . | . . . . Propulsion Burnouts . | . . . . Robots Hopped . | . . . . Cave-ins Triggered . | . . . . Exploration Rate (%) 40 | 3 34 56 69 Regions Visited 3 Branch Regions 2 Pre-discovered Areas 1 | . . . 1 Known Exits Taken . | . . . . Unknown Exits Taken 3 | 1 1 1 . Scrap Searched 1 | . . 1 . Spaces Dug . | . . . . Terrain Destroyed . | . . . . Melee . | . . . . Projectile . | . . . . AOE . | . . . . Actions | -11 -10 -10 -10 --------- Run | Scr Mat Min Exi Total 814 | 31 185 221 377 Wait 14 | . . 14 . Move 729 | 21 163 198 347 Hop . | . . . . Pick Up 13 | . 7 2 4 Fast Attach 3 | 1 . . 2 Attach 11 | 2 . 2 7 Detach 1 | . . . 1 Swap 3 | . . . 3 Drop 14 | 2 3 3 6 Fire 24 | 5 12 2 5 Melee 2 | . . . 2 Ram . | . . . . Kick . | . . . . Crush . | . . . . Escape Stasis . | . . . . Rewire . | . . . . Trap . | . . . . Miscellaneous . | . . . . Route ------- -11/Scrapyard -10/Materials (discovered 2 exits: [*Mat] / [*Min]) -10/Mines (discovered 2 exits: [*Mat] / *Exi) -10/Exiles (discovered 1 exit: [*Min]) History --------- Turn | Location | Event 5 | -11/Scrapyard | Discovered new exit (range 2) 40 | -11/Scrapyard | Entered Materials 170 | -10/Materials | Discovered new exit (range 12) 215 | -10/Materials | Met 8R-AWN 216 | -10/Materials | Discovered new exit (range 15) 232 | -10/Materials | Entered Mines 233 | -10/Mines | Followed 8R-AWN into the Mines 302 | -10/Mines | Build established: Mutant 350 | -10/Mines | Discovered new exit (range 7) 375 | -10/Mines | Found a damaged Exp. Sensor Array with a note attached 392 | -10/Mines | Found Prototype Device 425 | -10/Mines | Discovered new exit (range 5) 436 | -10/Mines | Entered Exiles 436 | -10/Exiles | Accompanied by 2 allies 450 | -10/Exiles | Discovered new exit (range 14) 462 | -10/Exiles | Welcomed by 8R-AWN 466 | -10/Exiles | Led the pair of lost Derelicts to a safe place 479 | -10/Exiles | Met EX-HEX 550 | -10/Exiles | Met EX-DEC 577 | -10/Exiles | Learned location of Zion (-6) 674 | -10/Exiles | Met EX-BIN 691 | -10/Exiles | Aligned with FarCom system 692 | -10/Exiles | Given EX-Vault access code 719 | -10/Exiles | Opened EX-Vault 727 | -10/Exiles | Found Longsword +1 732 | -10/Exiles | Found AWS/Gauss 759 | -10/Exiles | Warned to stay clear of 0b10 Research branches 819 | -10/Exiles | Attacked by the Exiles 820 | -10/Exiles | Destroyed EX-HEX 836 | -10/Exiles | Core integrity fell below 50% 840 | -10/Exiles | Destroyed by as-06061 with Assembled Heavy Rifle Last Messages --------------- 00830_ HV Slug penetrates Machine. 00830_ Hvy. EM Pulse Gun destroyed. 00830_ Lgt. Armor Plating destroyed. 00833_ HV Slug penetrates Assembled Analyzer. 00833_ HV Slug penetrates Machine. 00836_ Penetrated by HV Slug. 00836_ HV Slug penetrates Machine. 00836_ Penetrated by HV Slug. 00836_ Critical hit. 00836_ Hvy. EM Pulse Gun destroyed. 00836_ HV Slug penetrates Machine. 00837_ Destroyed Asb. Hover Unit. 00838_ Penetrated by HV Slug. 00838_ Ion Engine destroyed. 00838_ HV Slug penetrates Machine. 00838_ Penetrated by HV Slug. 00838_ Critical hit. 00838_ Lgt. Treads destroyed. 00839_ Dropped Hvy. EM Pulse Gun. 00840_ Penetrated by HV Slug. Map ----- +----------------------------------------------------+ | " """"#????????????????????????????????? | | " """#????????????????????????????????? | | " """#????????????????????????????????? | | " """#????????????????????????????????? | | " """#????????????????????????????????? | | " """#????????????????????????????????? | | # """"????????????????????????????????? | | # """#????????????????????????????????? | | #" "X" """"????????????????????????????????? | | #" """ #????????????????????????????????? | | #" """""""""#????????????????????????????????? | | #" ###########????????????????????????????????? | | "" #??????????????????????????????????????????? | | " #??????????????????????????????????????????? | | " ##?????????????????????????????????????????? | | " ##???###########??????????????????????????? | | #####"""""""""##?????????????????????????? | | " """"##????????????????????????? | | " #????????????????????????? | | " "#????????????????????????? | | "a"#???????????#####????????? | | "##?????????##" #????????? | | "###???????#" #????????? | | """" ! ""#??????##" ##???????? | | ###""" !!!%[#????### ###?????? | | ??#####""" !!@!##???# ####### | | ??????##""" !!!a ##?## #""""# | | ???????#"""" %= g### | | ??????##"" = ! ## * | | #??####"""" % #### | | ####""" ""#?#"""""#### | | """" #"""##?#######??### | | ######?????????????? | | ##??????????????????? | | " a ##???????????????????? | | "" """aa a ""#????????????????????? | | ## ##""" " " ""#" "##????????????????????? | | ## ######""" """##"""""""##?????????????????????? | | ?# #????###""""###########??????????????????????? | | ## ####???######????????????????????????????????? | | # "!#?????????????????????????????????????????? | | #" #?????????????????????????????????????????? | | #" "#?????????????????????????????????????????? | | #!!""!"#?????????????????????????????????????????? | | ########?????????????????????????????????????????? | | ?????????????????????????????????????????????????? | | ?????????????????????????????????????????????????? | | ?????????????????????????????????????????????????? | | ?????????????????????????????????????????????????? | | ?????????????????????????????????????????????????? | +----------------------------------------------------+ Best States ------------- Heat Dissipation 25 Energy Generation 10 Energy Capacity 250 Matter Stores 300 Matter Capacity 300 Sight Range 16 Terrain Scan Density 10 Armor Coverage 150 Evasion (%) 42 Recoil Reduction 2 Item Schematics ----------------- None Robot Schematics ------------------ None Fabricated ------------ Nothing Alien Tech Used ----------------- None Achievements -------------- None Challenges ------------ None Game ------ Seed ChainBombAutohacker Manual? 0 Play Time 00:11:43 Cumulative 28.2 hours Start 2020.07.30 @ 12:28:31 End 2020.07.30 @ 12:38:02 Sessions 1 Manual Loads 0 Difficulty Rogue Special Mode None Game No. 46 Rogue 43 Adventurer 2 Explorer 1 Win Type - Total 0 Types 0/0/0/0/0/0/0 Lore% 30 Gallery% 36 Achievement% 25 Wizard Run 0 Options --------- ASCII 0 Keyboard 0 Movement Mouse Keybinds 0 Fullscreen 2 Font 24/Terminus Map View 76x50 Tactical HUD 1 Map Filters NONE Filters NONE Steam 1 RUN: 1488b0b2-158b-443a-9294-927f8f8278ab